Workbook

Sheet 1
A1: Школа | B1: МБОУ "СОШ № 27" НМР РТ | E1: Отд./корп | I1: День | J1: 14.11.2023г.
A3: Прием пищи | B3: Раздел | C3: № рец. | D3: Блюдо | E3: Выход, г | F3: Цена | G3: Калорийность | H3: Белки | I3: Жиры | J3: Углеводы
A4: Завтрак | B4: гор.блюдо | D4: Булочка п/п , каша геркулесовая молочная | E4: 250.00 | G4: =155+215 -> 370.00 | H4: =6.27+6.23 -> 12.50 | I4: =7.86+6.86 -> 14.72 | J4: =14.83+32 -> 46.83
B5: гор.напиток | D5: Кофейный напиток с молоком | E5: 200.00 | G5: 60.10 | H5: 3.17 | I5: 2.68 | J5: 9.98
B6: хлеб | D6: Батон нарезной | E6: 50.00 | G6: 131.00 | H6: 3.75 | I6: 1.45 | J6: 25.70
E8: =E4+E5+E6+E7 -> 500.00 | G8: =G4+G5+G6+G7 -> 561.10 | H8: =H4+H5+H6+H7 -> 19.42 | I8: 18.85 | J8: 82.51
A9: Завтрак 2 | B9: фрукты
A12: Обед | B12: закуска
B13: 1 блюдо | D13: Рассольник Ленинградский со сметаной | E13: 205.00 | G13: 143.90 | H13: =7.74 -> 7.74 | I13: 12.82 | J13: =9.76 -> 9.76
B14: 2 блюдо | D14: Овощи тушеные с мясом, горошек косерв. | E14: 230.00 | G14: =363.45+17.76 -> 381.21 | H14: =12.69+0.87 -> 13.56 | I14: =13.53+0.82 -> 14.35 | J14: =44.88+1.74 -> 46.62
B15: гарнир
B16: напиток | D16: Напиток из изюма и яблок | E16: 200.00 | G16: 119.94 | H16: 0.38 | I16: 0.13 | J16: 29.30
B17: хлеб бел. | D17: Хлеб пшеничный | E17: 35.00 | G17: 82.25 | H17: 2.66 | I17: 0.28 | J17: 17.22
B18: хлеб черн. | D18: Хлеб ржаной | E18: 30.00 | G18: 53.46 | H18: 1.78 | I18: 0.32 | J18: 10.69
E20: =E13+E14+E15+E16+E17+E18+E12 -> 700.00 | G20: =G13+G12+G14+G15+G16+G17+G18 -> 780.76 | H20: =H13+H12+H14+H15+H16+H17+H18 -> 26.12 | I20: 27.90 | J20: 113.59
